Cogmind - Beta 14 @@@ ROGUE MODE // 2024.08.29 @ 22:53:46 Player: Smile Result: Destroyed by SX-KJ0(R) with Subdweller Machine Gun Performance ------------- Evolutions (0) 0 Regions Visited (2) 400 Robots Destroyed (25) 125 Value Destroyed (620) 620 Prototype IDs (0) 0 Alien Tech Used (0) 0 Bonus (0) 0 TOTAL SCORE: 1145 Bonus ------- None Cogmind --------- Core Integrity 0/250 Matter 239/300 Energy 50/100 System Corruption 1% Temperature Cool (6) Movement Treading (160) Location -10/Subcaves Parts ------- > --- POWER (1) -------- (None) > --- PROPULSION (2) --- Light Treads > --- UTILITY (2) ------ Medium Storage Unit > --- WEAPON (2) ------- Particle Gun > --- INVENTORY (10) --- Medium Matter Pod (100) Subdweller Optics Medium Laser Assault Rifle Assault Rifle Battle Rifle Mining Laser Peak State ------------ > --- POWER ------------ Light Ion Engine > --- PROPULSION ------- Light Treads Spiked Treads > --- UTILITY ---------- Disposable Heat Sink Medium Storage Unit > --- WEAPON ----------- Medium Laser Particle Gun > --- INVENTORY -------- Light Treads Medium Matter Pod Subdweller Optics Backup Plating I Particle Gun Assault Rifle Assault Rifle Assault Rifle Mining Laser [Rating: 11] Favorites ----------- Power Light Ion Engine Engine Light Ion Engine Propulsion Aluminum Leg Treads Light Treads Leg Aluminum Leg Utility Medium Storage Unit Device Heat Sink Storage Medium Storage Unit Processor Signal Interpreter Protection Backup Plating I Weapon Assault Rifle Energy Gun Medium Laser Ballistic Gun Assault Rifle Special Weapon Mining Laser Build | -11 -10 -10 ------- Run | Yrd Mat Sub Slots Evolved . | . . . Power . | . . . Propulsion . | . . . Utility . | . . . Weapon . | . . . Parts Attached 37 | 8 22 7 Power 3 | 1 2 . Engine 3 | 1 2 . Core . | . . . Reactor . | . . . Propulsion 7 | 2 3 2 Treads 4 | . 2 2 Leg 3 | 2 1 . Wheel . | . . . Hover . | . . . Flight . | . . . Utility 13 | 2 9 2 Device 5 | 2 2 1 Storage 3 | . 3 . Processor 3 | . 3 . Hackware . | . . . Protection 2 | . 1 1 Artifact . | . . . Weapon 14 | 3 8 3 Energy Gun 6 | 1 3 2 Energy Cannon . | . . . Ballistic Gun 7 | 2 4 1 Ballistic Cannon . | . . . Launcher . | . . . Special Weapon 1 | . 1 . Impact Weapon . | . . . Slashing Weapon . | . . . Piercing Weapon . | . . . Special Melee Weapon . | . . . Unidentified Prototypes . | . . . Parts Lost 8 | . 2 6 Power 1 | . . 1 Propulsion 2 | . . 2 Utility 2 | . 1 1 Weapon 3 | . 1 2 Highest Loss Streak 6 | . 1 6 To Critical Strikes . | . . . Average Slot Usage (%) 99 | . 99 96 Engine 13 | . 14 13 Treads 15 | . 13 28 Leg 12 | . 14 . Device 5 | . 6 . Storage 12 | . 12 14 Processor 6 | . 6 2 Protection 3 | . 1 10 Energy Gun 12 | . 11 15 Ballistic Gun 15 | . 16 11 Peak Build Rating 11 | 7 8 11 Average Rating 7 | 4 7 9 On Entrance 5 | . 7 8 Naked Turns . | . . . Heaviest Build 20 | 9 20 19 Greatest Support 40 | 20 40 40 Greatest Overweight (x) . | . . . Average Overweight (x) . | . . . Largest Inventory Capacity 10 | 5 10 10 Average Capacity 9 | 5 9 10 Most Carried 10 | 3 10 10 Average Carried 7 | . 8 9 Final Capacity 10 | 5 10 10 Final Carried 10 | 3 10 7 Class Distribution -------------------- 93% | Mutant 6% | Scavenger-Mutant Dominant Class ---------------- Mutant | -10/Materials Mutant | -10/Subcaves Resources | -11 -10 -10 ----------- Run | Yrd Mat Sub Matter Collected 788 | 235 510 43 Remotely . | . . . Salvage Created 838 | 71 689 78 Parts 60 | 7 49 4 Haulers Intercepted 2 | . 2 . Recyclers Shooed . | . . . Parts Field Recycled . | . . . Retrieved Matter . | . . . Parts Self-Destructed . | . . . Prevented . | . . . Kills | -11 -10 -10 ------- Run | Yrd Mat Sub Combat Hostiles Destroyed 16 | 1 13 2 Guns 16 | 1 13 2 Classes Destroyed 8 | 2 5 1 Builder 1 | . 1 . Tunneler 2 | 1 1 . Hauler 2 | . 2 . Operator 1 | . 1 . Watcher 3 | . 3 . Swarmer 3 | . 3 . Grunt 11 | 1 10 . Subdweller 2 | . . 2 Best Kill Streak 2 | 2 2 1 Combat Bots Only 2 | 1 2 1 Max Kills in Single Turn 1 | 1 1 1 Gunslinging . | . . . Exploded . | . . . Melee . | . . . Uniques/NPCs Destroyed . | . . . Combat | -11 -10 -10 -------- Run | Yrd Mat Sub Hostile Shots Fired 125 | 1 69 55 Missed 47 | . 28 19 Damage Taken 1325 | 12 531 782 Core 261 | . 109 152 Absorbed by Shields . | . . . Core Remaining (%) 100 | 100 . . Volleys Fired 99 | 2 78 19 Largest 2 | 2 2 2 Hottest 130 | 70 100 130 Shots Fired 191 | 4 149 38 Gun 186 | 4 144 38 Cannon . | . . . Launcher . | . . . Special 5 | . 5 . Kinetic 104 | 2 84 18 Thermal 68 | 2 46 20 Explosive . | . . . Electromagnetic 19 | . 19 . Robot Hit Streak 18 | 3 18 12 Robot Miss Streak 4 | . 4 3 Penetration Max . | . . . Secondary Targets 1 | . 1 . Max Gunslinging Chain 1 | . 1 . Shots Hit Robots 115 | 3 84 28 Core Hits 43 | 3 37 3 Critical Kills . | . . . Critical Parts Destroyed . | . . . Critical Strikes 4 | . 1 3 Burn 4 | . 1 3 Melee Attacks . | . . . Impact . | . . . Slashing . | . . . Piercing . | . . . Sneak Attacks . | . . . Combat Hostiles . | . . . Follow-up Attacks . | . . . Damage Inflicted 1432 | 38 1099 295 Guns 1345 | 38 1012 295 Cannons . | . . . Explosions 85 | . 85 . Melee . | . . . Ramming 2 | . 2 . Kinetic 670 | 14 532 124 Thermal 600 | 24 405 171 Explosive . | . . . Electromagnetic 160 | . 160 . Impact . | . . . Slashing . | . . . Piercing . | . . . Highest Corruption 1 | . 1 1 Average Corruption 1 | . 1 1 Corruption Purged . | . . . Corruption Blocked . | . . . Effects 8 | . 7 1 Message Errors 3 | . 3 . Matter Fused 2 | . 1 1 Heat Flow Errors 1 | . 1 . Energy Discharges 1 | . 1 . Alerts 1 | . 1 . Overload Shots . | . . . Overflow Damage 7 | . 7 . Projectiles . | . . . Explosions 7 | . 7 . Melee . | . . . Knockbacks . | . . . Impact . | . . . Kinetic . | . . . Secondary . | . . . Self-Inflicted Damage . | . . . Shots . | . . . Rammed 1 | . 1 . Targets Rammed 1 | . 1 . Kicked . | . . . Crushed . | . . . Highest Temperature 226 | 9 226 . Average Temperature 58 | 6 59 . Received Heat Transfer 420 | 6 291 123 Effects 3 | . 3 . Interference 3 | . 3 . Siege Activations . | . . . Robots Corrupted . | . . . Combat Hostiles . | . . . Parts Fried . | . . . Impact Corruptions . | . . . Robots Melted . | . . . Combat Hostiles . | . . . Parts Melted 3 | . 1 2 Heat Transferred 1889 | 74 1186 629 Parts Sabotaged . | . . . Parts Stolen . | . . . Parts Stripped . | . . . Power Chain Reactions 2 | . 2 . Alert | -11 -10 -10 ------- Run | Yrd Mat Sub Peak Influence 288 | 25 288 . Initial 16 | . 16 . Average 144 | 5 155 . Maximum Alert Level 1 | . 1 . Low Security (%) 86 | 100 85 . Level 1 13 | . 14 . Level 2 . | . . . Level 3 . | . . . Level 4 . | . . . Level 5 . | . . . High Security . | . . . Max Security . | . . . Squads Dispatched 2 | . 2 . Investigation 2 | . 2 . Extermination . | . . . Reinforcement . | . . . Assault . | . . . Garrison . | . . . Intercept . | . . . Searches Triggered . | . . . Construction Impeded . | . . . Haulers Reinforced . | . . . Active Scanning Responses . | . . . Cargo Convoy Interrupts . | . . . Stealth | -11 -10 -10 --------- Run | Yrd Mat Sub Distress Signals 2 | . 2 . Communications Jammed . | . . . Distress Signals . | . . . Times Spotted 39 | 1 27 11 Peak Tracking Total 7 | 1 4 7 Tactical Retreats 3 | . 3 . Traps | -11 -10 -10 ------- Run | Yrd Mat Sub Traps Triggered 1 | . 1 . Indirectly . | . . . Trap Hack Attempts . | . . . Triggered . | . . . Disarmed . | . . . Reprogrammed . | . . . Reused . | . . . Traps Extracted . | . . . Installed . | . . . Triggered . | . . . Machines | -11 -10 -10 ---------- Run | Yrd Mat Sub Machines Disabled 1 | . 1 . Max in Single Turn 1 | . 1 . Machines Repaired . | . . . Machines Dismantled . | . . . Machines Sabotaged . | . . . Overloaded Fab Kills . | . . . Hacking | -11 -10 -10 --------- Run | Yrd Mat Sub Machines Accessed 3 | . 3 . Terminals 3 | . 3 . Fabricators . | . . . Repair Stations . | . . . Recycling Units . | . . . Scanalyzers . | . . . Garrison Access . | . . . Total Hacks 9 | . 9 . Successful 5 | . 5 . Failed 4 | . 4 . Catastrophic . | . . . Database Lockouts . | . . . Manual . | . . . Terminals 9 | . 9 . Fabricators . | . . . Repair Stations . | . . . Recycling Units . | . . . Scanalyzers . | . . . Garrison Access . | . . . Terminal Hacks 5 | . 5 . Record 3 | . 3 . Alert Level 1 | . 1 . Locate Traps 1 | . 1 . Fabricator Hacks . | . . . Repair Station Hacks . | . . . Recycling Unit Hacks . | . . . Scanalyzer . | . . . Garrison Access Hacks . | . . . Unauthorized Hacks . | . . . Terminals . | . . . Fabricators . | . . . Repair Stations . | . . . Recycling Units . | . . . Scanalyzers . | . . . Garrison Access . | . . . Data Cores Recovered . | . . . Used . | . . . Hacking Detections 3 | . 3 . Full Trace Events 2 | . 2 . Feedback Events . | . . . Feedback Blocked . | . . . Robot Schematics Acquired . | . . . Robots Built . | . . . Authchips . | . . . Time . | . . . Total Robot Build Rating . | . . . Part Schematics Acquired . | . . . Parts Built . | . . . Authchips . | . . . Time . | . . . Total Part Build Rating . | . . . Parts Repaired . | . . . Time . | . . . Parts Recycled . | . . . Recycled Matter . | . . . Retrieved Matter . | . . . Retrieved Components . | . . . Parts Scanalyzed . | . . . Part Schematics Acquired . | . . . Parts Damaged . | . . . Bothacking | -11 -10 -10 ------------ Run | Yrd Mat Sub Used RIF Installer . | . . . Robots Hacked . | . . . Non-combat . | . . . Combat . | . . . Robot Hacks Applied . | . . . Relay Couplers Released . | . . . Fabnet Peak Effective % . | . . . Robots Rewired . | . . . Allies Hacked . | . . . Hacks Repelled . | . . . Allies | -11 -10 -10 -------- Run | Yrd Mat Sub Total Allies . | . . . Largest Group . | . . . Highest-Rated Group . | . . . Highest-Rated Ally . | . . . Total Orders . | . . . Ally Attacks . | . . . Total Damage . | . . . Kills . | . . . Allies Corrupted . | . . . Allies Melted . | . . . Intel | -11 -10 -10 ------- Run | Yrd Mat Sub Robot Analysis Total . | . . . Derelict Logs Recovered . | . . . Drone Launches . | . . . Drone Recoveries . | . . . Exploration | -11 -10 -10 ------------- Run | Yrd Mat Sub Turns Passed 1371 | 90 1104 177 Spaces Moved 691 | 64 561 66 Core 13 | 13 . . Treads 338 | . 272 66 Legs 340 | 51 289 . Wheels . | . . . Hover . | . . . Flight . | . . . Fastest Speed 50 | 50 120 160 Average Speed 138 | 105 139 160 Slowest Speed 160 | 120 160 160 Overloaded Moves . | . . . Propulsion Burnouts . | . . . Robots Hopped . | . . . Cave-ins Triggered . | . . . Exploration Rate (%) 25 | 7 62 6 Regions Visited 2 Branch Regions 1 Pre-discovered Areas . | . . . Known Exits Taken 1 | . 1 . Unknown Exits Taken 1 | 1 . . Scrap Searched . | . . . Spaces Dug 3 | . 3 . Terrain Destroyed 11 | . 11 . Melee . | . . . Projectile 3 | . 3 . AOE 8 | . 8 . Terrain Rammed . | . . . Walls Destroyed . | . . . Machines Disabled . | . . . Actions | -11 -10 -10 --------- Run | Yrd Mat Sub Total 911 | 78 731 102 Wait 38 | 2 34 2 Move 689 | 63 560 66 Hop . | . . . Pick Up 22 | 3 16 3 Fast Attach 17 | 7 9 1 Attach 5 | . 2 3 Detach 3 | . 3 . Swap 15 | 1 11 3 Drop 22 | . 17 5 Fire 99 | 2 78 19 Melee . | . . . Ram . | . . . Kick . | . . . Crush 1 | . 1 . Escape Stasis . | . . . Rewire . | . . . Trap . | . . . Miscellaneous . | . . . Route ------- -11/Scrapyard -10/Materials (discovered 4 exits: *Mat x2 / *Min / *Sub) -10/Subcaves (discovered 1 exit: [*Mat]) History --------- Turn | Location | Event 2 | -11/Scrapyard | Met Revision 17 62 | -11/Scrapyard | Discovered new exit (range 8) 91 | -11/Scrapyard | Entered Materials 316 | -10/Materials | Build established: Mutant 340 | -10/Materials | Discovered new exit (range 16) 492 | -10/Materials | Discovered new exit (range 11) 986 | -10/Materials | Discovered new exit (range 16) 1008 | -10/Materials | Identified exit to Materials 1062 | -10/Materials | Identified exit to Mines 1155 | -10/Materials | Discovered new exit (range 11) 1194 | -10/Materials | Identified exit to Subcaves 1195 | -10/Materials | Entered Subcaves 1294 | -10/Subcaves | Discovered new exit (range 7) 1318 | -10/Subcaves | Ambushed by swarm of Subdwellers 1333 | -10/Subcaves | Core integrity fell below 50% 1361 | -10/Subcaves | Core integrity fell below 20% 1372 | -10/Subcaves | Destroyed by SX-KJ0(R) with Subdweller Machine Gun Last Messages --------------- G3-ZCX(R) suffers critical hit (Burn). G3-ZCX(R) destroyed. 9W-9K8(R) suffers critical hit (Burn). 9W-9K8(R) affixes Scrap Shield Fragment to Scrap Shield. Lgt. Ion Engine destroyed. Subatomizers dissect the Sub. Power Source. Backup Plating I destroyed. 9W-9K8(R) suffers critical hit (Burn). Assault Rifle destroyed. VV-632(R) affixes Scrap Shield Fragment to Scrap Shield. Spk. Treads destroyed. 9W-9K8(R) affixes Scrap Shield Fragment to Scrap Shield. Lgt. Treads destroyed. Disposable Heat Sink melted. Sub. Laser melted. 9W-9K8(R) destroyed. Particle Gun destroyed. Map ----- +----------------------------------------------------+ | ???????????# ## ! #?????????????????????????? | | ???????????# ####[ ##????????????????????????? | | ???????????# ?## %=! #????????????????????????? | | ???????????# ### %! #????????????????????????? | | ???????????##?# #????????????????????????? | | ??????????????# % #????????????????????????? | | ??????????????# #????????????????????????? | | ???????????#### #????????????????????????? | | ???????????# #????????????????????????? | | ???????????# #????????????????????????? | | ???????????# ###????????????????????????? | | ???????????## "#??????????????????????????? | | ????????????## ###??????????????????????????? | | ?????????????## ##????????????????????????????? | | ??????????????## ##?????????????????????????????? | | ???????????????## #?????????????????????????????? | | ???????????????## ##?####????????????????????????? | | ???????????????# ### #???????#????????????????? | | ???????????????## #??????? ##???????????????? | | ???????????????# #### ##?????? ##??????????????? | | ???????????????###??# #????? % ##??? ????????? | | ???????????########## ##????? # ????????? | | ???????????# ####?]!!" ????????? | | ??????????# %&!##%%R" #???????????? | | ??????????# ### < %% RR =! #?????????????? | | ??????????#?????## !=@!%%!*= ##?????????????? | | ?????????????????## & %"###??????????????? | | ??????????????????#### " ##????????????????? | | ?????????????????????# ""R ##?????????????????? | | ???????????????????? "## #;#??????????????????? | | ???????????????????# ""######??????????????????? | | ???????????????????# ####???????????????????????? | | ??????????????????? #???????????????????????????? | | ??????????????????###????????????????????????????? | | ?????????????????????????????????????????????????? | | ?????????????????????????????????????????????????? | | ?????????????????????????????????????????????????? | | ?????????????????????????????????????????????????? | | ?????????????????????????????????????????????????? | | ?????????????????????????????????????????????????? | | ?????????????????????????????????????????????????? | | ?????????????????????????????????????????????????? | | ?????????????????????????????????????????????????? | | ?????????????????????????????????????????????????? | | ?????????????????????????????????????????????????? | | ?????????????????????????????????????????????????? | | ?????????????????????????????????????????????????? | | ?????????????????????????????????????????????????? | | | | | +----------------------------------------------------+ Best States ------------- Heat Dissipation 35 Energy Generation 10 Energy Capacity 250 Matter Stores 300 Matter Capacity 300 Sight Range 16 Terrain Scan Density 10 Armor Coverage 80 Evasion (%) 55 Targeting Accuracy 5 Recoil Reduction 2 Item Schematics ----------------- None Robot Schematics ------------------ None Fabricated ------------ Nothing Alien Tech Used ----------------- None Achievements -------------- None Challenges ------------ None Game ------ Seed RiotMobileSpecial Manual? 0 Play Time 01:12:31 Cumulative 1.7 hours Start 2024.08.29 @ 09:31:13 End 2024.08.29 @ 22:53:46 Sessions 3 Manual Loads 0 Difficulty Rogue Special Mode None Game No. 2 Rogue 2 Adventurer 0 Explorer 0 Win Type - Total 0 Types 0/0/0/0/0/0/0/0/0 Lore% 0 Gallery% 2 Achievement% 30 Wizard Run 0 Options --------- Layout 1 ASCII 0 Keyboard 0 Movement Mouse Keybinds 0 Fullscreen 1 Font 20/SmallcapsGlow Map View 27x21 Zoom Use 37% Tactical HUD 0 Map Filters NONE Filters NONE Steam 1 RUN: 9554afaa-03f0-4eac-b57c-40f9a37bd18f